[Event "23rd ETCC Women 2021"]
[Site "Catez"]
[Date "2021.11.12"]
[Round "1.47"]
[White "Machlik, Edit"]
[Black "Eric, Jovana"]
[Result "1-0"]
[ECO "E33"]
[WhiteElo "2087"]
[BlackElo "2253"]
[Annotator "ChessBase"]
[PlyCount "131"]
[EventDate "2021.11.08"]
[EventType "team-tourn"]
[EventCountry "SLO"]
[SourceTitle "playchess.com"]
[Source "ChessBase"]
[SourceQuality "1"]
[WhiteTeam "Norway"]
[BlackTeam "Serbia"]
[WhiteTeamCountry "NOR"]
[BlackTeamCountry "SRB"]
[TimeControl "40/5400+30:1800+30"]

1. d4 {[%emt 0:00:03]} Nf6 {[%emt 0:00:10]} 2. c4 {[%emt 0:00:05]} e6 {[%emt 0:
00:09]} 3. Nc3 {[%emt 0:00:06]} Bb4 {[%emt 0:00:10]} 4. Qc2 {[%emt 0:00:12]}
Nc6 {[%emt 0:00:41]} 5. Nf3 {[%emt 0:03:14]} O-O {[%emt 0:01:02]} 6. e3 {
[%emt 0:13:48]} d6 {[%emt 0:06:27]} 7. Bd2 {[%emt 0:02:52]} e5 {[%emt 0:03:19]}
8. dxe5 {[%emt 0:02:13]} dxe5 {[%emt 0:00:45]} 9. a3 {[%emt 0:02:45]} Bxc3 {
[%emt 0:06:10]} 10. Bxc3 {[%emt 0:00:08]} Re8 {[%emt 0:00:14]} 11. h3 {[%emt 0:
06:01]} a5 {[%emt 0:09:48]} 12. b3 {[%emt 0:05:45]} h6 {[%emt 0:07:20]} 13. Be2
{[%emt 0:01:34]} e4 {[%emt 0:04:19]} 14. Nd4 {[%emt 0:01:56]} Ne5 {[%emt 0:01:
50]} 15. Rd1 {[%emt 0:03:47]} Qe7 {[%emt 0:01:30]} 16. Bb2 {[%emt 0:17:10]} Bd7
{[%emt 0:07:29]} 17. a4 {[%emt 0:20:04]} Qc5 {[%emt 0:06:48]} 18. O-O {[%emt 0:
01:33]} Rad8 {[%emt 0:11:15]} 19. Nb5 {[%emt 0:01:54]} Bxb5 {[%emt 0:22:06]}
20. axb5 {[%emt 0:00:14]} Ned7 {[%emt 0:00:44]} 21. Rd2 {[%emt 0:02:00]} Qe7 {
[%emt 0:02:09]} 22. Rfd1 {[%emt 0:05:31]} b6 {[%emt 0:00:55]} 23. Bc3 {[%emt 0:
03:26]} Ra8 {[%emt 0:02:03]} 24. Bb2 {[%emt 0:02:38]} Nc5 {[%emt 0:00:12]} 25.
Ba3 {[%emt 0:00:51]} Qe5 {[%emt 0:00:14]} 26. b4 {[%emt 0:00:56]} axb4 {
[%emt 0:01:00]} 27. Bxb4 {[%emt 0:00:01]} Qg5 {[%emt 0:00:30]} 28. Bc3 {
[%emt 0:00:43]} Kh7 {[%emt 0:02:03]} 29. Bb2 {[%emt 0:01:34]} Re6 {[%emt 0:01:
27]} 30. Bc3 {[%emt 0:00:46]} Rae8 {[%emt 0:01:43]} 31. Bb2 {[%emt 0:00:19]}
Qg6 {[%emt 0:00:44]} 32. Bc3 {[%emt 0:00:52]} Ng8 {[%emt 0:00:25]} 33. Rd5 {
[%emt 0:00:27]} Nf6 {[%emt 0:00:27]} 34. R5d2 {[%emt 0:00:43]} R6e7 {[%emt 0:
00:09]} 35. Rd8 {[%emt 0:00:30]} Nfd7 {[%emt 0:00:25]} 36. Rxe8 {[%emt 0:00:26]
} Rxe8 {[%emt 0:00:04]} 37. Bb4 {[%emt 0:00:40]} Re5 {[%emt 0:00:38]} 38. Rd5 {
[%emt 0:00:51]} Qe6 {[%emt 0:01:17]} 39. Rxe5 {[%emt 0:00:33]} Qxe5 {[%emt 0:
00:06]} 40. Bc3 {[%emt 0:00:13]} Qg5 {[%emt 0:00:28]} 41. Qd2 {[%emt 0:08:49]}
Ne5 {[%emt 0:15:27]} 42. Qd5 {[%emt 0:06:08]} f6 {[%emt 0:02:36]} 43. Bd4 {
[%emt 0:10:18]} Ned3 {[%emt 0:05:04]} 44. Qc6 {[%emt 0:04:15]} Ne1 {[%emt 0:02:
27]} 45. Kf1 {[%emt 0:01:25]} Ned3 {[%emt 0:04:41]} 46. Qxc7 {[%emt 0:01:11]}
Qf5 {[%emt 0:00:39]} 47. Qg3 {[%emt 0:00:25]} Nb3 {[%emt 0:00:34]} 48. Bc3 {
[%emt 0:00:50]} Qc5 {[%emt 0:00:49]} 49. Qg4 {[%emt 0:00:55]} Qxc4 {[%emt 0:00:
36]} 50. Qf5+ {[%emt 0:00:30]} Kh8 {[%emt 0:00:14]} 51. Qg6 {[%emt 0:01:08]}
Nbc5 {[%emt 0:01:40]} 52. Qe8+ {[%emt 0:00:34]} Kh7 {[%emt 0:00:05]} 53. Bd2 {
[%emt 0:00:25]} f5 {[%emt 0:01:20]} 54. Qf8 {[%emt 0:00:41]} Qd5 {[%emt 0:00:
26]} 55. Bc3 {[%emt 0:00:22]} Ne6 {[%emt 0:00:11]} 56. Qf7 {[%emt 0:00:31]} Qc5
{[%emt 0:01:51]} 57. Qxe6 {[%emt 0:00:35]} Qxc3 {[%emt 0:00:05]} 58. Qxf5+ {
[%emt 0:00:11]} Kh8 {[%emt 0:00:04]} 59. Qf8+ {[%emt 0:00:15]} Kh7 {[%emt 0:00:
06]} 60. Qf5+ {[%emt 0:00:18]} Kh8 {[%emt 0:00:15]} 61. Kg1 {[%emt 0:01:17]}
Qc1+ {[%emt 0:01:59]} 62. Bf1 {[%emt 0:00:29]} Qc4 {[%emt 0:00:31]} 63. Qf8+ {
[%emt 0:00:11]} Kh7 {[%emt 0:00:04]} 64. Qf5+ {[%emt 0:00:17]} Kg8 {[%emt 0:00:
18]} 65. Qd7 {[%emt 0:00:36]} Qc2 {[%emt 0:00:23]} 66. Qe8+ {[%emt 0:00:14]}
1-0

[Event "23rd ETCC Women 2021"]
[Site "Catez"]
[Date "2021.11.12"]
[Round "1.48"]
[White "Manakova, Maria"]
[Black "Rodsmoen, Maud"]
[Result "0-1"]
[ECO "C00"]
[WhiteElo "2289"]
[BlackElo "1953"]
[Annotator "ChessBase"]
[PlyCount "112"]
[EventDate "2021.11.08"]
[EventType "team-tourn"]
[EventCountry "SLO"]
[SourceTitle "playchess.com"]
[Source "ChessBase"]
[SourceQuality "1"]
[WhiteTeam "Serbia"]
[BlackTeam "Norway"]
[WhiteTeamCountry "SRB"]
[BlackTeamCountry "NOR"]
[TimeControl "40/5400+30:1800+30"]

1. e4 {[%emt 0:00:04]} c5 {[%emt 0:00:14]} 2. f4 {[%emt 0:00:30]} e6 {[%emt 0:
04:14]} 3. Nf3 {[%emt 0:00:32]} Nc6 {[%emt 0:03:45]} 4. c3 {[%emt 0:02:59]} d5
{[%emt 0:03:01]} 5. e5 {[%emt 0:08:25]} c4 {[%emt 0:08:05]} 6. b3 {[%emt 0:00:
00]} b5 {[%emt 0:08:48]} 7. a4 {[%emt 0:00:00]} Na5 {[%emt 0:05:39]} 8. Nd4 {
[%emt 0:14:48]} Bc5 {[%emt 0:11:35]} 9. Qg4 {[%emt 0:17:00]} g6 {[%emt 0:04:56]
} 10. b4 {[%emt 0:01:20]} Bxd4 {[%emt 0:01:25]} 11. bxa5 {[%emt 0:00:17]} Bc5 {
[%emt 0:00:22]} 12. axb5 {[%emt 0:00:46]} Bd7 {[%emt 0:02:20]} 13. d3 {[%emt 0:
05:32]} Bxb5 {[%emt 0:09:22]} 14. dxc4 {[%emt 0:00:32]} Bxc4 {[%emt 0:03:05]}
15. Bxc4 {[%emt 0:00:13]} dxc4 {[%emt 0:00:04]} 16. Nd2 {[%emt 0:03:43]} Nh6 {
[%emt 0:10:52]} 17. Qf3 {[%emt 0:12:13]} Rc8 {[%emt 0:01:29]} 18. Ne4 {[%emt 0:
00:33]} Be7 {[%emt 0:02:36]} 19. O-O {[%emt 0:03:06]} Nf5 {[%emt 0:01:38]} 20.
Rd1 {[%emt 0:01:42]} Qc7 {[%emt 0:00:25]} 21. Ba3 {[%emt 0:06:25]} Bxa3 {
[%emt 0:02:19]} 22. Rxa3 {[%emt 0:00:04]} O-O {[%emt 0:01:04]} 23. Rd7 {
[%emt 0:07:50]} Qb8 {[%emt 0:01:29]} 24. Rb7 {[%emt 0:00:33]} Qa8 {[%emt 0:00:
45]} 25. a6 {[%emt 0:01:03]} Rcd8 {[%emt 0:02:34]} 26. Nf6+ {[%emt 0:03:20]}
Kg7 {[%emt 0:00:46]} 27. Nd7 {[%emt 0:00:17]} Rxd7 {[%emt 0:01:47]} 28. Rxd7 {
[%emt 0:00:11]} Qc8 {[%emt 0:00:15]} 29. Rd4 {[%emt 0:05:45]} Qc5 {[%emt 0:01:
29]} 30. Ra2 {[%emt 0:00:23]} Nxd4 {[%emt 0:01:27]} 31. cxd4 {[%emt 0:00:08]}
Qxd4+ {[%emt 0:00:57]} 32. Qf2 {[%emt 0:00:19]} Qd1+ {[%emt 0:00:48]} 33. Qf1 {
[%emt 0:00:05]} Qb3 {[%emt 0:00:21]} 34. Ra1 {[%emt 0:01:59]} Rb8 {[%emt 0:03:
15]} 35. h3 {[%emt 0:03:48]} c3 {[%emt 0:03:46]} 36. Kh2 {[%emt 0:00:03]} c2 {
[%emt 0:00:44]} 37. Rc1 {[%emt 0:00:14]} Rc8 {[%emt 0:00:34]} 38. Qe1 {[%emt 0:
01:10]} Qa4 {[%emt 0:00:22]} 39. Qd2 {[%emt 0:00:50]} Qc4 {[%emt 0:00:36]} 40.
Qf2 {[%emt 0:00:16]} Rc7 {[%emt 0:00:36]} 41. Qd2 {[%emt 0:30:40]} Rc6 {
[%emt 0:30:34]} 42. Qf2 {[%emt 0:00:00]} Rc5 {[%emt 0:00:00]} 43. Qd2 {[%emt 0:
00:00]} Qe4 {[%emt 0:00:00]} 44. Qf2 {[%emt 0:00:00]} Rc4 {[%emt 0:00:00]} 45.
Qd2 {[%emt 0:00:00]} Rc7 {[%emt 0:00:00]} 46. Qf2 {[%emt 0:00:00]} Qd3 {
[%emt 0:00:00]} 47. h4 {[%emt 0:00:00]} Qd1 {[%emt 0:00:00]} 48. Qg1 {[%emt 0:
00:14]} Qd2 {[%emt 0:00:00]} 49. Qf1 {[%emt 0:00:46]} Rc3 {[%emt 0:00:00]} 50.
h5 {[%emt 0:00:53]} Rd3 {[%emt 0:00:00]} 51. f5 {[%emt 0:03:07]} exf5 {[%emt 0:
00:00]} 52. hxg6 {[%emt 0:00:58]} hxg6 {[%emt 0:00:00]} 53. e6 {[%emt 0:00:47]}
fxe6 {[%emt 0:00:00]} 54. Re1 {[%emt 0:00:11]} Re3 {[%emt 0:00:00]} 55. Ra1 {
[%emt 0:00:42]} Qd6+ {[%emt 0:00:56]} 56. Kh1 {[%emt 0:00:24]} Rd3 {[%emt 0:00:
32]} 0-1

[Event "23rd ETCC Women 2021"]
[Site "Catez"]
[Date "2021.11.12"]
[Round "1.49"]
[White "Brunello, Marina"]
[Black "Zaksaite, Salomeja"]
[Result "0-1"]
[ECO "B33"]
[WhiteElo "2359"]
[BlackElo "2250"]
[Annotator "ChessBase"]
[PlyCount "124"]
[EventDate "2021.11.08"]
[EventType "team-tourn"]
[EventCountry "SLO"]
[SourceTitle "playchess.com"]
[Source "ChessBase"]
[SourceQuality "1"]
[WhiteTeam "Italy"]
[BlackTeam "Lithuania"]
[WhiteTeamCountry "ITA"]
[BlackTeamCountry "LTU"]
[TimeControl "40/5400+30:1800+30"]

1. e4 {[%emt 0:00:05]} c5 {[%emt 0:00:16]} 2. Nf3 {[%emt 0:00:07]} Nc6 {
[%emt 0:00:10]} 3. d4 {[%emt 0:00:07]} cxd4 {[%emt 0:00:06]} 4. Nxd4 {[%emt 0:
00:05]} Nf6 {[%emt 0:00:04]} 5. Nc3 {[%emt 0:00:08]} e5 {[%emt 0:00:05]} 6.
Ndb5 {[%emt 0:00:06]} d6 {[%emt 0:00:05]} 7. Bg5 {[%emt 0:00:18]} a6 {[%emt 0:
00:05]} 8. Na3 {[%emt 0:00:30]} b5 {[%emt 0:00:11]} 9. Nd5 {[%emt 0:00:10]} Be7
{[%emt 0:00:06]} 10. Bxf6 {[%emt 0:00:06]} Bxf6 {[%emt 0:00:05]} 11. c4 {
[%emt 0:00:05]} b4 {[%emt 0:00:05]} 12. Nc2 {[%emt 0:00:05]} O-O {[%emt 0:00:
34]} 13. g3 {[%emt 0:01:00]} a5 {[%emt 0:02:06]} 14. Bg2 {[%emt 0:00:14]} Bg5 {
[%emt 0:02:07]} 15. O-O {[%emt 0:01:01]} Be6 {[%emt 0:01:08]} 16. f4 {[%emt 0:
06:37]} exf4 {[%emt 0:10:30]} 17. gxf4 {[%emt 0:00:05]} Bh6 {[%emt 0:00:04]}
18. Qh5 {[%emt 0:06:03]} Bxd5 {[%emt 0:37:26]} 19. exd5 {[%emt 0:13:07]} Qb6+ {
[%emt 0:05:03]} 20. Kh1 {[%emt 0:00:41]} Nd4 {[%emt 0:00:23]} 21. Ne3 {[%emt 0:
03:17]} f5 {[%emt 0:18:21]} 22. Bh3 {[%emt 0:18:55]} b3 {[%emt 0:04:26]} 23. a4
{[%emt 0:20:01]} Rf6 {[%emt 0:03:22]} 24. Rad1 {[%emt 0:06:59]} Raf8 {[%emt 0:
02:40]} 25. Rd3 {[%emt 0:00:06]} Kh8 {[%emt 0:00:59]} 26. Rc3 {[%emt 0:03:00]}
Qc5 {[%emt 0:01:11]} 27. Ng2 {[%emt 0:01:13]} Nc2 {[%emt 0:01:59]} 28. Rd1 {
[%emt 0:01:06]} Nb4 {[%emt 0:03:48]} 29. Qe2 {[%emt 0:01:28]} g6 {[%emt 0:00:
42]} 30. Rxb3 {[%emt 0:00:26]} Rc8 {[%emt 0:00:33]} 31. Rc3 {[%emt 0:02:33]}
Na2 {[%emt 0:02:11]} 32. Rc2 {[%emt 0:01:20]} Rff8 {[%emt 0:00:55]} 33. b3 {
[%emt 0:02:11]} Rfe8 {[%emt 0:00:48]} 34. Qf3 {[%emt 0:00:13]} Nb4 {[%emt 0:01:
07]} 35. Re2 {[%emt 0:00:04]} Bg7 {[%emt 0:02:20]} 36. Re6 {[%emt 0:05:22]}
Rxe6 {[%emt 0:01:29]} 37. dxe6 {[%emt 0:00:06]} Re8 {[%emt 0:00:01]} 38. Ne3 {
[%emt 0:00:50]} Bd4 {[%emt 0:00:50]} 39. Nd5 {[%emt 0:03:38]} Rxe6 {[%emt 0:00:
18]} 40. Nxb4 {[%emt 0:01:11]} axb4 {[%emt 0:00:49]} 41. Qd5 {[%emt 0:21:04]}
Qxd5+ {[%emt 0:10:07]} 42. cxd5 {[%emt 0:00:09]} Re4 {[%emt 0:00:07]} 43. a5 {
[%emt 0:04:33]} Bc5 {[%emt 0:02:27]} 44. Bf1 {[%emt 0:01:36]} Rxf4 {[%emt 0:02:
37]} 45. a6 {[%emt 0:01:46]} Re4 {[%emt 0:05:16]} 46. Ra1 {[%emt 0:01:10]} Re7
{[%emt 0:00:05]} 47. Rc1 {[%emt 0:00:48]} Kg7 {[%emt 0:01:39]} 48. Bb5 {
[%emt 0:00:08]} Kf6 {[%emt 0:02:35]} 49. Kg2 {[%emt 0:00:04]} f4 {[%emt 0:01:
08]} 50. Rf1 {[%emt 0:02:32]} g5 {[%emt 0:00:34]} 51. h3 {[%emt 0:03:26]} Ke5 {
[%emt 0:04:02]} 52. Re1+ {[%emt 0:01:00]} Be3 {[%emt 0:00:16]} 53. Bc6 {
[%emt 0:02:32]} Ra7 {[%emt 0:03:22]} 54. Bb7 {[%emt 0:00:50]} Kd4 {[%emt 0:00:
03]} 55. Kf3 {[%emt 0:00:25]} Kc3 {[%emt 0:00:08]} 56. Ke4 {[%emt 0:00:22]}
Kxb3 {[%emt 0:00:06]} 57. Kd3 {[%emt 0:00:35]} Kb2 {[%emt 0:04:08]} 58. Re2+ {
[%emt 0:00:21]} Ka3 {[%emt 0:00:05]} 59. Rg2 {[%emt 0:01:22]} b3 {[%emt 0:00:
27]} 60. Re2 {[%emt 0:00:34]} b2 {[%emt 0:00:56]} 61. Kc2 {[%emt 0:00:23]} Ka2
{[%emt 0:00:33]} 62. Re1 {[%emt 0:00:25]} f3 {[%emt 0:00:19]} 0-1

[Event "23rd ETCC Women 2021"]
[Site "Catez"]
[Date "2021.11.12"]
[Round "1.50"]
[White "Baginskaite, Kamile"]
[Black "Zimina, Olga"]
[Result "1-0"]
[ECO "E15"]
[WhiteElo "2100"]
[BlackElo "2339"]
[Annotator "ChessBase"]
[PlyCount "162"]
[EventDate "2021.11.08"]
[EventType "team-tourn"]
[EventCountry "SLO"]
[SourceTitle "playchess.com"]
[Source "ChessBase"]
[SourceQuality "1"]
[WhiteTeam "Lithuania"]
[BlackTeam "Italy"]
[WhiteTeamCountry "LTU"]
[BlackTeamCountry "ITA"]
[TimeControl "40/5400+30:1800+30"]

1. d4 {[%emt 0:00:03]} Nf6 {[%emt 0:00:08]} 2. Nf3 {[%emt 0:01:15]} e6 {
[%emt 0:00:06]} 3. c4 {[%emt 0:00:55]} b6 {[%emt 0:00:06]} 4. g3 {[%emt 0:00:
14]} Ba6 {[%emt 0:00:06]} 5. b3 {[%emt 0:00:10]} Bb4+ {[%emt 0:00:06]} 6. Bd2 {
[%emt 0:00:08]} Be7 {[%emt 0:00:06]} 7. Nc3 {[%emt 0:01:20]} c6 {[%emt 0:00:20]
} 8. Bg2 {[%emt 0:20:32]} d5 {[%emt 0:00:33]} 9. Ne5 {[%emt 0:01:07]} Nfd7 {
[%emt 0:06:04]} 10. Nd3 {[%emt 0:25:03]} dxc4 {[%emt 0:16:36]} 11. bxc4 {
[%emt 0:00:08]} Bxc4 {[%emt 0:00:19]} 12. Bf4 {[%emt 0:01:01]} O-O {[%emt 0:01:
13]} 13. O-O {[%emt 0:00:19]} a5 {[%emt 0:01:15]} 14. Rb1 {[%emt 0:14:46]} Qc8
{[%emt 0:23:19]} 15. Qd2 {[%emt 0:00:18]} Rd8 {[%emt 0:00:51]} 16. Rfc1 {
[%emt 0:00:21]} Qa6 {[%emt 0:13:58]} 17. Nb2 {[%emt 0:01:06]} e5 {[%emt 0:04:
50]} 18. Nxc4 {[%emt 0:07:55]} exf4 {[%emt 0:02:35]} 19. Qxf4 {[%emt 0:01:06]}
Ra7 {[%emt 0:07:00]} 20. Ne4 {[%emt 0:02:01]} b5 {[%emt 0:02:40]} 21. Ne3 {
[%emt 0:10:25]} Nf8 {[%emt 0:00:11]} 22. Nf5 {[%emt 0:03:48]} Ne6 {[%emt 0:04:
45]} 23. Qg4 {[%emt 0:00:03]} Rad7 {[%emt 0:06:28]} 24. Nxe7+ {[%emt 0:03:26]}
Rxe7 {[%emt 0:00:01]} 25. e3 {[%emt 0:01:59]} Qa7 {[%emt 0:00:44]} 26. d5 {
[%emt 0:00:40]} cxd5 {[%emt 0:00:36]} 27. Nf6+ {[%emt 0:00:03]} Kh8 {[%emt 0:
00:07]} 28. Nxd5 {[%emt 0:00:08]} Rb7 {[%emt 0:02:46]} 29. Nc3 {[%emt 0:00:21]}
Rc7 {[%emt 0:00:30]} 30. Nxb5 {[%emt 0:00:18]} Rxc1+ {[%emt 0:00:04]} 31. Rxc1
{[%emt 0:00:03]} Qb6 {[%emt 0:00:09]} 32. a4 {[%emt 0:00:36]} Nd7 {[%emt 0:01:
37]} 33. Rc6 {[%emt 0:01:29]} Qb8 {[%emt 0:04:03]} 34. Qf5 {[%emt 0:00:20]} Ne5
{[%emt 0:00:23]} 35. Be4 {[%emt 0:01:01]} g6 {[%emt 0:01:12]} 36. Qf6+ {
[%emt 0:00:05]} Kg8 {[%emt 0:00:09]} 37. Ra6 {[%emt 0:01:22]} Ng4 {[%emt 0:02:
19]} 38. Qh4 {[%emt 0:02:07]} h5 {[%emt 0:00:32]} 39. Ra8 {[%emt 0:00:26]} Qb6
{[%emt 0:00:02]} 40. Rxd8+ {[%emt 0:01:14]} Nxd8 {[%emt 0:00:01]} 41. h3 {
[%emt 0:04:18]} Nf6 {[%emt 0:09:34]} 42. Bf3 {[%emt 0:00:08]} Kg7 {[%emt 0:00:
51]} 43. Qc4 {[%emt 0:04:35]} Ne6 {[%emt 0:00:56]} 44. Nd4 {[%emt 0:03:24]} Nc5
{[%emt 0:07:18]} 45. Nb5 {[%emt 0:01:13]} Ne6 {[%emt 0:00:24]} 46. Qc3 {
[%emt 0:01:18]} Nc5 {[%emt 0:02:41]} 47. Qd4 {[%emt 0:00:05]} Ncd7 {[%emt 0:00:
07]} 48. Qc3 {[%emt 0:05:34]} Nc5 {[%emt 0:00:12]} 49. Bd1 {[%emt 0:00:07]}
Nce4 {[%emt 0:01:14]} 50. Qd4 {[%emt 0:00:39]} Qc6 {[%emt 0:01:28]} 51. Bf3 {
[%emt 0:04:18]} Qc1+ {[%emt 0:00:23]} 52. Kg2 {[%emt 0:01:49]} Nd2 {[%emt 0:00:
49]} 53. Be2 {[%emt 0:02:02]} Nde4 {[%emt 0:08:35]} 54. Nd6 {[%emt 0:03:37]}
Nxd6 {[%emt 0:01:47]} 55. Qxd6 {[%emt 0:00:06]} Qc2 {[%emt 0:00:19]} 56. Qd1 {
[%emt 0:00:53]} Qa2 {[%emt 0:02:06]} 57. Bf3 {[%emt 0:00:19]} Qc4 {[%emt 0:00:
39]} 58. h4 {[%emt 0:01:14]} Ne4 {[%emt 0:00:44]} 59. Qd4+ {[%emt 0:01:51]}
Qxd4 {[%emt 0:00:02]} 60. exd4 {[%emt 0:00:05]} Nd2 {[%emt 0:00:08]} 61. Bd5 {
[%emt 0:00:27]} f6 {[%emt 0:00:24]} 62. f4 {[%emt 0:00:32]} g5 {[%emt 0:01:19]}
63. Kf2 {[%emt 0:00:18]} gxh4 {[%emt 0:00:20]} 64. gxh4 {[%emt 0:00:01]} Nb1 {
[%emt 0:00:08]} 65. Ke3 {[%emt 0:00:32]} Nc3 {[%emt 0:00:07]} 66. Bc6 {[%emt 0:
00:07]} Na2 {[%emt 0:00:53]} 67. d5 {[%emt 0:00:35]} Kf7 {[%emt 0:00:33]} 68.
Kd4 {[%emt 0:00:31]} Ke7 {[%emt 0:00:05]} 69. Kc5 {[%emt 0:00:06]} Nb4 {
[%emt 0:00:08]} 70. d6+ {[%emt 0:00:51]} Ke6 {[%emt 0:00:17]} 71. d7 {[%emt 0:
00:36]} Ke7 {[%emt 0:00:06]} 72. Kb6 {[%emt 0:00:34]} Kd8 {[%emt 0:00:01]} 73.
f5 {[%emt 0:01:05]} Nc2 {[%emt 0:01:34]} 74. Kxa5 {[%emt 0:00:17]} Ne3 {
[%emt 0:00:10]} 75. Kb6 {[%emt 0:00:49]} Nxf5 {[%emt 0:00:42]} 76. a5 {[%emt 0:
00:25]} Nd4 {[%emt 0:00:25]} 77. a6 {[%emt 0:00:25]} Ne6 {[%emt 0:00:07]} 78.
a7 {[%emt 0:01:37]} Nc7 {[%emt 0:00:04]} 79. Kc5 {[%emt 0:00:40]} Ke7 {[%emt 0:
02:40]} 80. Kd4 {[%emt 0:00:17]} Ne6+ {[%emt 0:00:40]} 81. Ke4 {[%emt 0:00:24]}
Nc7 {[%emt 0:00:12]} 1-0

[Event "23rd ETCC Women 2021"]
[Site "Catez"]
[Date "2021.11.12"]
[Round "1.51"]
[White "Gueci, Tea"]
[Black "Simkunaite, Gabija"]
[Result "1-0"]
[ECO "B30"]
[WhiteElo "2242"]
[BlackElo "1962"]
[Annotator "NA"]
[PlyCount "93"]
[EventDate "2021.11.08"]
[EventType "team-tourn"]
[EventCountry "SLO"]
[SourceTitle "playchess.com"]
[Source "ChessBase"]
[SourceQuality "1"]
[WhiteTeam "Italy"]
[BlackTeam "Lithuania"]
[WhiteTeamCountry "ITA"]
[BlackTeamCountry "LTU"]
[TimeControl "40/5400+30:1800+30"]

1. e4 {[%emt 0:00:03]} c5 {[%emt 0:00:12]} 2. Nf3 {[%emt 0:00:05]} Nc6 {
[%emt 0:00:17]} 3. Bb5 {[%emt 0:00:04]} e5 {[%emt 0:00:05]} 4. O-O {[%emt 0:05:
29]} Bd6 {[%emt 0:00:12]} 5. c3 {[%emt 0:02:21]} a6 {[%emt 0:02:28]} 6. Be2 {
[%emt 0:17:27]} Nf6 {[%emt 0:08:11]} 7. d3 {[%emt 0:04:19]} O-O {[%emt 0:02:01]
} 8. a4 {[%emt 0:01:00]} Rb8 {[%emt 0:02:18]} 9. Bg5 {[%emt 0:03:08]} Be7 {
[%emt 0:08:24]} 10. Nbd2 {[%emt 0:02:51]} d5 {[%emt 0:12:04]} 11. Qc2 {[%emt 0:
03:36]} Be6 {[%emt 0:07:32]} 12. Rfd1 {[%emt 0:05:48]} Ng4 {[%emt 0:05:56]} 13.
Bxe7 {[%emt 0:06:58]} Qxe7 {[%emt 0:00:27]} 14. h3 {[%emt 0:00:40]} Nh6 {
[%emt 0:02:38]} 15. Nf1 {[%emt 0:05:21]} d4 {[%emt 0:04:17]} 16. cxd4 {[%emt 0:
04:12]} Nxd4 {[%emt 0:02:04]} 17. Nxd4 {[%emt 0:02:05]} cxd4 {[%emt 0:00:07]}
18. Qd2 {[%emt 0:05:14]} f6 {[%emt 0:04:17]} 19. f4 {[%emt 0:04:38]} exf4 {
[%emt 0:08:17]} 20. Qxf4 {[%emt 0:01:06]} Rbc8 {[%emt 0:01:51]} 21. Rdc1 {
[%emt 0:02:58]} Nf7 {[%emt 0:05:38]} 22. Ng3 {[%emt 0:03:16]} Qb4 {[%emt 0:01:
35]} 23. Bg4 {[%emt 0:04:20]} Bxg4 {[%emt 0:03:45]} 24. Qxg4 {[%emt 0:00:04]}
Rxc1+ {[%emt 0:03:04]} 25. Rxc1 {[%emt 0:00:04]} Ne5 {[%emt 0:03:51]} 26. Qe6+
{[%emt 0:01:38]} Kh8 {[%emt 0:00:07]} 27. Nf5 {[%emt 0:08:06]} Qd2 {[%emt 0:07:
09]} 28. Qc8 {[%emt 0:01:01]} Kg8 {[%emt 0:00:41]} 29. Qe6+ {[%emt 0:02:40]}
Kh8 {[%emt 0:00:08]} 30. Qc8 {[%emt 0:00:03]} Kg8 {[%emt 0:00:06]} 31. Ne7+ {
[%emt 0:01:32]} Kf7 {[%emt 0:00:14]} 32. Qc7 {[%emt 0:00:10]} Qg5 {[%emt 0:04:
28]} 33. Rf1 {[%emt 0:01:58]} Re8 {[%emt 0:01:40]} 34. Nf5+ {[%emt 0:01:22]}
Kg8 {[%emt 0:00:02]} 35. Qxb7 {[%emt 0:01:04]} h5 {[%emt 0:01:21]} 36. Qd5+ {
[%emt 0:01:05]} Kh7 {[%emt 0:00:23]} 37. Qxd4 {[%emt 0:00:26]} Rc8 {[%emt 0:00:
31]} 38. h4 {[%emt 0:00:45]} Qd2 {[%emt 0:00:30]} 39. Qa7 {[%emt 0:00:16]} Rg8
{[%emt 0:00:08]} 40. d4 {[%emt 0:00:39]} Ng4 {[%emt 0:00:52]} 41. Qf7 {[%emt 0:
06:41]} Nh6 {[%emt 0:04:47]} 42. Qxh5 {[%emt 0:01:24]} Rf8 {[%emt 0:01:26]} 43.
d5 {[%emt 0:04:58]} Qxb2 {[%emt 0:01:05]} 44. Nxh6 {[%emt 0:00:38]} gxh6 {
[%emt 0:00:09]} 45. Qf5+ {[%emt 0:00:19]} Kg7 {[%emt 0:00:39]} 46. Rf3 {
[%emt 0:00:52]} Qb8 {[%emt 0:03:47]} 47. h5 {[%emt 0:01:10]} 1-0

[Event "23rd ETCC Women 2021"]
[Site "Catez"]
[Date "2021.11.12"]
[Round "1.52"]
[White "Sibajeva, Marija"]
[Black "Movileanu, Daniela"]
[Result "0-1"]
[ECO "B53"]
[WhiteElo "1946"]
[BlackElo "2214"]
[Annotator "NA"]
[PlyCount "100"]
[EventDate "2021.11.08"]
[EventType "team-tourn"]
[EventCountry "SLO"]
[SourceTitle "playchess.com"]
[Source "ChessBase"]
[SourceQuality "1"]
[WhiteTeam "Lithuania"]
[BlackTeam "Italy"]
[WhiteTeamCountry "LTU"]
[BlackTeamCountry "ITA"]
[TimeControl "40/5400+30:1800+30"]

1. e4 {[%emt 0:00:03]} c5 {[%emt 0:00:12]} 2. Nf3 {[%emt 0:00:08]} d6 {[%emt 0:
00:11]} 3. d4 {[%emt 0:00:21]} cxd4 {[%emt 0:00:08]} 4. Qxd4 {[%emt 0:00:06]}
Nc6 {[%emt 0:00:26]} 5. Bb5 {[%emt 0:00:10]} Bd7 {[%emt 0:00:24]} 6. Bxc6 {
[%emt 0:00:09]} Bxc6 {[%emt 0:00:06]} 7. Nc3 {[%emt 0:00:06]} e5 {[%emt 0:00:
55]} 8. Qd3 {[%emt 0:00:12]} h6 {[%emt 0:00:11]} 9. Be3 {[%emt 0:03:06]} Nf6 {
[%emt 0:02:41]} 10. h3 {[%emt 0:03:20]} Be7 {[%emt 0:02:00]} 11. O-O-O {
[%emt 0:00:35]} Qa5 {[%emt 0:02:04]} 12. Kb1 {[%emt 0:03:02]} b5 {[%emt 0:03:
57]} 13. Nd2 {[%emt 0:05:46]} O-O {[%emt 0:05:29]} 14. Nb3 {[%emt 0:05:41]} Qc7
{[%emt 0:03:25]} 15. Nd5 {[%emt 0:02:09]} Bxd5 {[%emt 0:09:29]} 16. exd5 {
[%emt 0:00:08]} Rfc8 {[%emt 0:00:23]} 17. Rd2 {[%emt 0:05:36]} a5 {[%emt 0:04:
53]} 18. g4 {[%emt 0:08:18]} a4 {[%emt 0:03:50]} 19. Nc1 {[%emt 0:02:16]} b4 {
[%emt 0:01:37]} 20. Rg1 {[%emt 0:12:43]} a3 {[%emt 0:13:01]} 21. b3 {[%emt 0:
00:34]} Ra5 {[%emt 0:02:47]} 22. Qc4 {[%emt 0:17:16]} Qb7 {[%emt 0:10:15]} 23.
Qf1 {[%emt 0:00:36]} Nxd5 {[%emt 0:02:28]} 24. Ne2 {[%emt 0:01:52]} Nxe3 {
[%emt 0:03:56]} 25. fxe3 {[%emt 0:00:17]} Qc6 {[%emt 0:03:09]} 26. Qf2 {
[%emt 0:05:52]} d5 {[%emt 0:02:34]} 27. Rf1 {[%emt 0:01:49]} Bf6 {[%emt 0:02:
01]} 28. h4 {[%emt 0:03:13]} Rc7 {[%emt 0:01:48]} 29. Qg3 {[%emt 0:01:25]} g6 {
[%emt 0:03:17]} 30. g5 {[%emt 0:03:33]} hxg5 {[%emt 0:00:05]} 31. hxg5 {
[%emt 0:00:14]} Bg7 {[%emt 0:00:09]} 32. Qh4 {[%emt 0:01:28]} Rc5 {[%emt 0:03:
33]} 33. Qxb4 {[%emt 0:02:27]} Rxc2 {[%emt 0:02:17]} 34. Qb8+ {[%emt 0:01:01]}
Bf8 {[%emt 0:02:00]} 35. Qxc7 {[%emt 0:01:21]} Rb2+ {[%emt 0:01:39]} 36. Rxb2 {
[%emt 0:00:11]} Qxc7 {[%emt 0:00:02]} 37. Rc2 {[%emt 0:00:22]} Qd8 {[%emt 0:00:
16]} 38. Nc3 {[%emt 0:01:46]} Bb4 {[%emt 0:03:23]} 39. Rd1 {[%emt 0:06:22]}
Bxc3 {[%emt 0:01:51]} 40. Rxc3 {[%emt 0:00:07]} Qxg5 {[%emt 0:01:06]} 41. Rxd5
{[%emt 0:30:38]} Qg2 {[%emt 0:31:14]} 42. Rd8+ {[%emt 0:00:19]} Kg7 {[%emt 0:
00:02]} 43. Rc2 {[%emt 0:00:30]} Qh1+ {[%emt 0:04:16]} 44. Rc1 {[%emt 0:00:11]}
Qe4+ {[%emt 0:00:04]} 45. Rc2 {[%emt 0:00:49]} Qxe3 {[%emt 0:00:06]} 46. Rd1 {
[%emt 0:00:45]} e4 {[%emt 0:00:00]} 47. Rcd2 {[%emt 0:00:00]} Qc3 {[%emt 0:00:
00]} 48. Rc2 {[%emt 0:00:00]} Qe5 {[%emt 0:00:00]} 49. Rh1 {[%emt 0:00:00]} e3
{[%emt 0:00:00]} 50. Re1 {[%emt 0:00:00]} f5 {[%emt 0:00:00]} 0-1